[Event "*** Titled Tuesday 3|2 Blitz"]
[Site "Chess.com"]
[Date "2017.06.06"]
[Round "6"]
[White "Hamisandwich"]
[Black "XDPS"]
[Result "1-0"]
[WhiteElo "2460"]
[BlackElo "2506"]
[TimeControl "180+2"]
[EndTime "15:08:17 PDT"]
[Termination "Hamisandwich won by resignation"]

1. c3 {[%clk 0:03:02]} 1... d5 {[%clk 0:03:00.4]} 2. g3 {[%clk 0:03:00.2]} 2...
e5 {[%clk 0:03:00.1]} 3. Bg2 {[%clk 0:03:01.3]} 3... c6 {[%clk 0:03:01.1]} 4. d3
{[%clk 0:02:59.9]} 4... Nf6 {[%clk 0:03:01.8]} 5. e4 {[%clk 0:02:57.9]} 5...
dxe4 {[%clk 0:03:02.4]} 6. dxe4 {[%clk 0:02:59]} 6... Qxd1+ {[%clk 0:03:03.4]}
7. Kxd1 {[%clk 0:03:00.9]} 7... Be6 {[%clk 0:03:03.6]} 8. Kc2 {[%clk 0:02:47.2]}
8... h6 {[%clk 0:03:02.8]} 9. f3 {[%clk 0:02:45.2]} 9... Nbd7 {[%clk 0:03:03.3]}
10. Bh3 {[%clk 0:02:39.7]} 10... Bxh3 {[%clk 0:03:03.6]} 11. Nxh3 {[%clk
0:02:41.6]} 11... O-O-O {[%clk 0:03:03.2]} 12. Be3 {[%clk 0:02:36.6]} 12... Bc5
{[%clk 0:03:03.2]} 13. Re1 {[%clk 0:02:30.8]} 13... Kc7 {[%clk 0:03:01.3]} 14.
Nf2 {[%clk 0:02:30.2]} 14... Bxe3 {[%clk 0:02:58.6]} 15. Rxe3 {[%clk 0:02:31.1]}
15... Nc5 {[%clk 0:03:00.3]} 16. Nd2 {[%clk 0:02:27.2]} 16... Ne8 {[%clk
0:02:59.2]} 17. a4 {[%clk 0:02:23]} 17... Nd6 {[%clk 0:02:58.7]} 18. b4 {[%clk
0:02:18.9]} 18... Ne6 {[%clk 0:02:59]} 19. Nd3 {[%clk 0:02:17.6]} 19... f6
{[%clk 0:02:59.4]} 20. f4 {[%clk 0:02:14.3]} 20... exf4 {[%clk 0:02:52]} 21.
gxf4 {[%clk 0:02:16.2]} 21... g5 {[%clk 0:02:53.9]} 22. f5 {[%clk 0:02:04.5]}
22... Nf8 {[%clk 0:02:40.7]} 23. Nb3 {[%clk 0:01:46.1]} 23... Nd7 {[%clk
0:02:40.9]} 24. Nd4 {[%clk 0:01:46]} 24... Nc4 {[%clk 0:02:34.3]} 25. Re2 {[%clk
0:01:42.4]} 25... Rde8 {[%clk 0:02:35.1]} 26. Rd1 {[%clk 0:01:28.2]} 26... Nde5
{[%clk 0:02:35.1]} 27. Nc5 {[%clk 0:01:27.2]} 27... Re7 {[%clk 0:02:31.8]} 28.
Kb3 {[%clk 0:01:21.7]} 28... b6 {[%clk 0:02:29.3]} 29. Nde6+ {[%clk 0:01:10.6]}
29... Kc8 {[%clk 0:02:29.4]} 30. Nd3 {[%clk 0:01:10.5]} 30... Nxd3 {[%clk
0:02:28.8]} 31. Rxd3 {[%clk 0:01:12.4]} 31... Ne5 {[%clk 0:02:30.4]} 32. Rd6
{[%clk 0:00:48.2]} 32... Rd7 {[%clk 0:02:31.1]} 33. Rxd7 {[%clk 0:00:48.8]}
33... Kxd7 {[%clk 0:02:31.8]} 34. Rd2+ {[%clk 0:00:48.6]} 34... Ke7 {[%clk
0:02:33.3]} 35. c4 {[%clk 0:00:46.9]} 35... h5 {[%clk 0:02:30.6]} 36. c5 {[%clk
0:00:46.3]} 36... g4 {[%clk 0:02:28.1]} 37. cxb6 {[%clk 0:00:42.8]} 37... axb6
{[%clk 0:02:30]} 38. a5 {[%clk 0:00:42.8]} 38... bxa5 {[%clk 0:02:28.9]} 39.
bxa5 {[%clk 0:00:44.7]} 39... Ra8 {[%clk 0:02:30.2]} 40. Ra2 {[%clk 0:00:40]}
40... h4 {[%clk 0:02:30.1]} 41. Kb4 {[%clk 0:00:25.3]} 41... Ra6 {[%clk
0:01:43.9]} 42. Nc5 {[%clk 0:00:24.5]} 42... Ra8 {[%clk 0:01:44.4]} 43. a6
{[%clk 0:00:25.7]} 43... g3 {[%clk 0:01:42.7]} 44. hxg3 {[%clk 0:00:25.5]} 44...
h3 {[%clk 0:01:42.7]} 45. Rh2 {[%clk 0:00:25.3]} 45... Rh8 {[%clk 0:01:43.3]}
46. a7 {[%clk 0:00:22]} 46... Ra8 {[%clk 0:01:31.1]} 47. Rxh3 {[%clk 0:00:21.7]}
47... Rxa7 {[%clk 0:01:32.4]} 48. Rh8 {[%clk 0:00:18.4]} 48... Ra1 {[%clk
0:01:31.7]} 49. Rh7+ {[%clk 0:00:18.5]} 49... Nf7 {[%clk 0:01:32.3]} 50. Ne6
{[%clk 0:00:19.2]} 50... Rb1+ {[%clk 0:01:31.3]} 51. Kc5 {[%clk 0:00:18.6]}
51... Rc1+ {[%clk 0:01:32.7]} 52. Kb6 {[%clk 0:00:19.7]} 52... Ke8 {[%clk
0:01:32.5]} 53. Rg7 {[%clk 0:00:15.2]} 53... Rc4 {[%clk 0:01:31.3]} 54. Rg6
{[%clk 0:00:11.3]} 54... Ke7 {[%clk 0:01:31.7]} 55. Rg4 {[%clk 0:00:10.1]} 55...
Ne5 {[%clk 0:01:29.7]} 56. Rg7+ {[%clk 0:00:10.9]} 56... Kd6 {[%clk 0:01:29.5]}
57. Nd8 {[%clk 0:00:07.7]} 57... Nd7+ {[%clk 0:01:30.6]} 58. Ka6 {[%clk
0:00:05.4]} 58... Ra4+ {[%clk 0:01:23.3]} 59. Kb7 {[%clk 0:00:04.4]} 59... Rb4+
{[%clk 0:01:24.3]} 60. Ka6 {[%clk 0:00:04.7]} 60... Rxe4 {[%clk 0:01:24.2]} 61.
Nb7+ {[%clk 0:00:04.8]} 61... Ke5 {[%clk 0:01:13.9]} 62. Rxd7 {[%clk 0:00:06.7]}
62... Kxf5 {[%clk 0:01:13.3]} 63. Nd6+ {[%clk 0:00:07.1]} 63... Ke6 {[%clk
0:01:14.9]} 64. Nxe4 {[%clk 0:00:09]} 64... Kxd7 {[%clk 0:01:16.8]} 65. Nxf6+
{[%clk 0:00:10.3]} 65... Ke6 {[%clk 0:01:18.7]} 66. Ne4 {[%clk 0:00:11.2]} 66...
Kf5 {[%clk 0:01:19.4]} 67. Nf2 {[%clk 0:00:12.4]} 67... Ke5 {[%clk 0:01:17.3]}
68. Kb6 {[%clk 0:00:11.2]} 68... Kd5 {[%clk 0:01:18.5]} 69. g4 {[%clk
0:00:11.8]} 69... c5 {[%clk 0:01:19.3]} 70. Kb5 {[%clk 0:00:13.4]} 70... c4
{[%clk 0:01:18.4]} 71. Kb4 {[%clk 0:00:14]} 71... Kd4 {[%clk 0:01:19.8]} 72. Ka3
{[%clk 0:00:15.3]} 72... Ke3 {[%clk 0:01:14.5]} 73. Kb2 {[%clk 0:00:16.1]} 73...
Kd2 {[%clk 0:01:15.3]} 74. Ne4+ {[%clk 0:00:16]} 74... Kd3 {[%clk 0:01:16.7]}
75. g5 {[%clk 0:00:17.1]} 75... Kxe4 {[%clk 0:01:16.8]} 76. g6 {[%clk
0:00:18.4]} 76... Kd3 {[%clk 0:01:18.7]} 77. Kc1 {[%clk 0:00:19.3]} 1-0

[Event "*** Titled Tuesday 3|2 Blitz"]
[Site "Chess.com"]
[Date "2017.06.06"]
[Round "6"]
[White "anon102030"]
[Black "Federtiu"]
[Result "0-1"]
[WhiteElo "2576"]
[BlackElo "2451"]
[TimeControl "180+2"]
[EndTime "15:08:34 PDT"]
[Termination "Federtiu won by checkmate"]

1. e4 {[%clk 0:03:02]} 1... g6 {[%clk 0:03:01]} 2. Nc3 {[%clk 0:03:02.2]} 2...
Bg7 {[%clk 0:03:02]} 3. g3 {[%clk 0:03:04.1]} 3... c5 {[%clk 0:02:50.8]} 4. Bg2
{[%clk 0:03:05]} 4... Nc6 {[%clk 0:02:52.7]} 5. d3 {[%clk 0:03:06.2]} 5... Rb8
{[%clk 0:02:54]} 6. Be3 {[%clk 0:03:06.8]} 6... Nd4 {[%clk 0:02:49.6]} 7. Qd2
{[%clk 0:03:07.2]} 7... b5 {[%clk 0:02:50.3]} 8. Nd1 {[%clk 0:03:08.4]} 8... d6
{[%clk 0:02:48.3]} 9. c3 {[%clk 0:03:08.8]} 9... Nc6 {[%clk 0:02:49.5]} 10. Ne2
{[%clk 0:03:09.9]} 10... e5 {[%clk 0:02:48.8]} 11. O-O {[%clk 0:03:09.8]} 11...
Nge7 {[%clk 0:02:46.9]} 12. f4 {[%clk 0:03:10.5]} 12... exf4 {[%clk 0:02:47.2]}
13. Bxf4 {[%clk 0:03:09.8]} 13... O-O {[%clk 0:02:45.7]} 14. Bh6 {[%clk
0:03:10.9]} 14... b4 {[%clk 0:02:26.1]} 15. Bxg7 {[%clk 0:02:59.6]} 15... Kxg7
{[%clk 0:02:28]} 16. Ne3 {[%clk 0:02:54]} 16... Be6 {[%clk 0:02:20.1]} 17. d4
{[%clk 0:02:53.1]} 17... bxc3 {[%clk 0:02:16.2]} 18. bxc3 {[%clk 0:02:54.1]}
18... cxd4 {[%clk 0:02:10.8]} 19. cxd4 {[%clk 0:02:44.7]} 19... d5 {[%clk
0:02:11.8]} 20. e5 {[%clk 0:02:44]} 20... Rb4 {[%clk 0:01:47.1]} 21. a3 {[%clk
0:02:19.7]} 21... Ra4 {[%clk 0:01:46.1]} 22. Nc2 {[%clk 0:02:06.2]} 22... Nf5
{[%clk 0:01:16.2]} 23. Rf4 {[%clk 0:01:53.7]} 23... Qb6 {[%clk 0:01:09.6]} 24.
Kh1 {[%clk 0:01:54.8]} 24... Qb2 {[%clk 0:01:05.4]} 25. Rd1 {[%clk 0:01:49.3]}
25... Rc4 {[%clk 0:00:56.3]} 26. Ne3 {[%clk 0:01:26.6]} 26... Qxd2 {[%clk
0:00:56.8]} 27. Nxf5+ {[%clk 0:01:27.6]} 27... Bxf5 {[%clk 0:00:58.4]} 28. Rxd2
{[%clk 0:01:29.3]} 28... Be6 {[%clk 0:00:53.1]} 29. Rf6 {[%clk 0:01:26.6]} 29...
Rb8 {[%clk 0:00:49.6]} 30. h4 {[%clk 0:01:23]} 30... Rb3 {[%clk 0:00:46]} 31.
Nf4 {[%clk 0:00:57.6]} 31... Rxd4 {[%clk 0:00:32.3]} 32. Rc2 {[%clk 0:00:45.5]}
32... Nxe5 {[%clk 0:00:29]} 33. Rxe6 {[%clk 0:00:46.6]} 33... Rd1+ {[%clk
0:00:30]} 34. Kh2 {[%clk 0:00:42.3]} 34... fxe6 {[%clk 0:00:30.8]} 35. Nxe6+
{[%clk 0:00:39.2]} 35... Kf6 {[%clk 0:00:31.7]} 36. Nf4 {[%clk 0:00:28.6]} 36...
d4 {[%clk 0:00:29.2]} 37. Nd5+ {[%clk 0:00:21.5]} 37... Ke6 {[%clk 0:00:24.8]}
38. Nf4+ {[%clk 0:00:21.2]} 38... Kd6 {[%clk 0:00:25.8]} 39. a4 {[%clk
0:00:21.5]} 39... Rc3 {[%clk 0:00:20.6]} 40. Re2 {[%clk 0:00:20.4]} 40... Ng4+
{[%clk 0:00:19.9]} 41. Kh3 {[%clk 0:00:21]} 41... Ne3 {[%clk 0:00:21.4]} 42. Be4
{[%clk 0:00:21.2]} 42... Rcc1 {[%clk 0:00:20.4]} 43. g4 {[%clk 0:00:21.2]} 43...
Ke5 {[%clk 0:00:19.1]} 44. Nd3+ {[%clk 0:00:20.1]} 44... Kxe4 {[%clk 0:00:20.3]}
45. Nxc1 {[%clk 0:00:22]} 45... Rxc1 {[%clk 0:00:22.2]} 46. h5 {[%clk
0:00:10.1]} 46... d3 {[%clk 0:00:20.5]} 47. Rf2 {[%clk 0:00:10.2]} 47... gxh5
{[%clk 0:00:16]} 48. gxh5 {[%clk 0:00:10.3]} 48... Rh1+ {[%clk 0:00:16.9]} 49.
Kg3 {[%clk 0:00:11.3]} 49... Rxh5 {[%clk 0:00:16.5]} 50. Rf4+ {[%clk 0:00:12.7]}
50... Kd5 {[%clk 0:00:17.8]} 51. Rf7 {[%clk 0:00:14.6]} 51... Nc4 {[%clk
0:00:17.6]} 52. Rd7+ {[%clk 0:00:11.6]} 52... Nd6 {[%clk 0:00:18.6]} 53. Kf2
{[%clk 0:00:13.3]} 53... Re5 {[%clk 0:00:19.8]} 54. Rxh7 {[%clk 0:00:10.9]}
54... d2 {[%clk 0:00:18.7]} 55. Rh1 {[%clk 0:00:12.8]} 55... Nc4 {[%clk
0:00:19.4]} 56. Kf3 {[%clk 0:00:10.7]} 56... Nb2 {[%clk 0:00:19.4]} 57. Kf4
{[%clk 0:00:07.7]} 57... d1=Q {[%clk 0:00:21.3]} 58. Rxd1+ {[%clk 0:00:07.7]}
58... Nxd1 {[%clk 0:00:23.2]} 59. a5 {[%clk 0:00:09.6]} 59... Nc3 {[%clk
0:00:24]} 60. Kf3 {[%clk 0:00:11.5]} 60... Kd4 {[%clk 0:00:25.6]} 61. a6 {[%clk
0:00:12.3]} 61... Re4 {[%clk 0:00:26.6]} 62. Kf2 {[%clk 0:00:12.7]} 62... Re3
{[%clk 0:00:27.7]} 63. Kg2 {[%clk 0:00:14.6]} 63... Ke4 {[%clk 0:00:28.8]} 64.
Kf2 {[%clk 0:00:16.5]} 64... Kf4 {[%clk 0:00:30]} 65. Kg2 {[%clk 0:00:18.4]}
65... Rf3 {[%clk 0:00:31.2]} 66. Kh2 {[%clk 0:00:20.3]} 66... Rg3 {[%clk
0:00:32.4]} 67. Kh1 {[%clk 0:00:22.2]} 67... Kf3 {[%clk 0:00:33.6]} 68. Kh2
{[%clk 0:00:24.1]} 68... Ne2 {[%clk 0:00:33]} 69. Kh1 {[%clk 0:00:26]} 69...
Rh3# {[%clk 0:00:34.2]} 0-1

[Event "*** Titled Tuesday 3|2 Blitz"]
[Site "Chess.com"]
[Date "2017.06.06"]
[Round "6"]
[White "Ginger_GM"]
[Black "gmcorrales"]
[Result "0-1"]
[WhiteElo "2429"]
[BlackElo "2545"]
[TimeControl "180+2"]
[EndTime "15:09:14 PDT"]
[Termination "gmcorrales won on time"]

1. d4 {[%clk 0:03:02]} 1... Nf6 {[%clk 0:02:58.6]} 2. Bf4 {[%clk 0:02:57.9]}
2... g6 {[%clk 0:02:59.3]} 3. Nc3 {[%clk 0:02:58.2]} 3... d5 {[%clk 0:02:59.2]}
4. e3 {[%clk 0:02:57.8]} 4... Bg7 {[%clk 0:03:00]} 5. h4 {[%clk 0:02:57.6]} 5...
h5 {[%clk 0:02:59.9]} 6. Be2 {[%clk 0:02:55.1]} 6... c6 {[%clk 0:02:59.1]} 7.
Nf3 {[%clk 0:02:54.8]} 7... Bg4 {[%clk 0:02:59.2]} 8. Ne5 {[%clk 0:02:54.2]}
8... Bxe2 {[%clk 0:02:59.3]} 9. Qxe2 {[%clk 0:02:54]} 9... Nbd7 {[%clk
0:03:00.3]} 10. O-O {[%clk 0:02:53.5]} 10... O-O {[%clk 0:02:59.6]} 11. a4
{[%clk 0:02:52.1]} 11... a5 {[%clk 0:02:59.2]} 12. f3 {[%clk 0:02:44.6]} 12...
Nxe5 {[%clk 0:02:51.6]} 13. Bxe5 {[%clk 0:02:42.8]} 13... Qb6 {[%clk 0:02:42.4]}
14. b3 {[%clk 0:02:36.8]} 14... Nd7 {[%clk 0:02:40.7]} 15. Bxg7 {[%clk
0:02:36.3]} 15... Kxg7 {[%clk 0:02:42.6]} 16. Rad1 {[%clk 0:02:29.8]} 16... e5
{[%clk 0:02:40.1]} 17. Qd3 {[%clk 0:02:20.8]} 17... Rae8 {[%clk 0:02:38.6]} 18.
e4 {[%clk 0:02:14.6]} 18... Nf6 {[%clk 0:02:26.4]} 19. Kh1 {[%clk 0:02:09.1]}
19... exd4 {[%clk 0:02:22.8]} 20. Qxd4 {[%clk 0:02:09.5]} 20... Qxd4 {[%clk
0:02:22.5]} 21. Rxd4 {[%clk 0:02:09.7]} 21... dxe4 {[%clk 0:02:23.8]} 22. Nxe4
{[%clk 0:02:07.1]} 22... Nxe4 {[%clk 0:02:24]} 23. fxe4 {[%clk 0:02:07.3]} 23...
Re7 {[%clk 0:02:25.3]} 24. Kg1 {[%clk 0:01:45.4]} 24... Rfe8 {[%clk 0:02:26.2]}
25. Rf4 {[%clk 0:01:45.2]} 25... c5 {[%clk 0:01:40.7]} 26. Rd5 {[%clk
0:01:31.8]} 26... b6 {[%clk 0:01:21.5]} 27. Rd6 {[%clk 0:01:23.3]} 27... Re6
{[%clk 0:01:09.7]} 28. Rd7 {[%clk 0:01:03.8]} 28... R8e7 {[%clk 0:00:50.7]} 29.
Rxe7 {[%clk 0:01:04]} 29... Rxe7 {[%clk 0:00:52.6]} 30. Kf2 {[%clk 0:01:05.1]}
30... f6 {[%clk 0:00:53]} 31. Ke3 {[%clk 0:01:00.9]} 31... f5 {[%clk 0:00:52]}
32. Kd3 {[%clk 0:00:43.7]} 32... Rd7+ {[%clk 0:00:52.8]} 33. Ke3 {[%clk
0:00:41.2]} 33... Kf6 {[%clk 0:00:52.8]} 34. exf5 {[%clk 0:00:41.5]} 34... gxf5
{[%clk 0:00:54.7]} 35. Rf1 {[%clk 0:00:36.8]} 35... Ke5 {[%clk 0:00:55.3]} 36.
g3 {[%clk 0:00:36.7]} 36... Rd4 {[%clk 0:00:50.7]} 37. Rf2 {[%clk 0:00:33.2]}
37... Rg4 {[%clk 0:00:47.9]} 38. Kf3 {[%clk 0:00:33.3]} 38... c4 {[%clk
0:00:42.5]} 39. Rd2 {[%clk 0:00:28.2]} 39... f4 {[%clk 0:00:31.5]} 40. Re2+
{[%clk 0:00:23.9]} 40... Kf5 {[%clk 0:00:32.1]} 41. gxf4 {[%clk 0:00:20.5]}
41... Rxf4+ {[%clk 0:00:34]} 42. Kg3 {[%clk 0:00:20.3]} 42... Rg4+ {[%clk
0:00:28.2]} 43. Kh3 {[%clk 0:00:20.2]} 43... Re4 {[%clk 0:00:27.8]} 44. Rg2
{[%clk 0:00:16.9]} 44... Re3+ {[%clk 0:00:26.9]} 45. Kh2 {[%clk 0:00:17.4]}
45... cxb3 {[%clk 0:00:23.6]} 46. cxb3 {[%clk 0:00:18.1]} 46... Rxb3 {[%clk
0:00:25.5]} 47. Rg5+ {[%clk 0:00:18.9]} 47... Kf4 {[%clk 0:00:24.3]} 48. Rxh5
{[%clk 0:00:20.1]} 48... Rb4 {[%clk 0:00:25.2]} 49. Rh6 {[%clk 0:00:19]} 49...
Kg4 {[%clk 0:00:26.1]} 50. Kg2 {[%clk 0:00:19.6]} 50... Kf4 {[%clk 0:00:14.7]}
51. Kf2 {[%clk 0:00:20]} 51... Ke5 {[%clk 0:00:14]} 52. h5 {[%clk 0:00:20.3]}
52... Kd5 {[%clk 0:00:14.1]} 53. Kg3 {[%clk 0:00:19.1]} 53... Kc5 {[%clk
0:00:14.3]} 54. Rg6 {[%clk 0:00:19.1]} 54... Rxa4 {[%clk 0:00:13.6]} 55. h6
{[%clk 0:00:20.1]} 55... Ra1 {[%clk 0:00:13.9]} 56. Kg2 {[%clk 0:00:20.7]} 56...
Ra2+ {[%clk 0:00:14.6]} 57. Kg3 {[%clk 0:00:20.2]} 57... Ra3+ {[%clk 0:00:15.7]}
58. Kg2 {[%clk 0:00:20.1]} 58... Ra4 {[%clk 0:00:15.6]} 59. Kg3 {[%clk
0:00:20.6]} 59... Ra3+ {[%clk 0:00:12.7]} 60. Kg2 {[%clk 0:00:21.3]} 60... Ra2+
{[%clk 0:00:13.2]} 61. Kh3 {[%clk 0:00:21.2]} 61... Ra1 {[%clk 0:00:11.2]} 62.
Rg2 {[%clk 0:00:21.2]} 62... Rh1+ {[%clk 0:00:09]} 63. Rh2 {[%clk 0:00:22.1]}
63... Re1 {[%clk 0:00:09.8]} 64. h7 {[%clk 0:00:22.5]} 64... Re8 {[%clk
0:00:10.3]} 65. Kg4 {[%clk 0:00:24.1]} 65... Rh8 {[%clk 0:00:09.9]} 66. Kf5
{[%clk 0:00:22.7]} 66... a4 {[%clk 0:00:10.8]} 67. Ke4 {[%clk 0:00:23.7]} 67...
Kc4 {[%clk 0:00:10.9]} 68. Rc2+ {[%clk 0:00:20.2]} 68... Kb3 {[%clk 0:00:11.4]}
69. Rc7 {[%clk 0:00:18.4]} 69... b5 {[%clk 0:00:11.8]} 70. Kd4 {[%clk
0:00:18.1]} 70... b4 {[%clk 0:00:12.9]} 71. Kc5 {[%clk 0:00:18.2]} 71... a3
{[%clk 0:00:13.4]} 72. Rb7 {[%clk 0:00:19]} 72... a2 {[%clk 0:00:12.7]} 73.
Rxb4+ {[%clk 0:00:19.4]} 73... Ka3 {[%clk 0:00:13.2]} 0-1

[Event "*** Titled Tuesday 3|2 Blitz"]
[Site "Chess.com"]
[Date "2017.06.06"]
[Round "6"]
[White "FearlessKing64"]
[Black "Wolverine_master"]
[Result "1-0"]
[WhiteElo "2160"]
[BlackElo "1992"]
[TimeControl "180+2"]
[EndTime "15:09:18 PDT"]
[Termination "FearlessKing64 won on time"]

1. e4 {[%clk 0:03:02]} 1... d5 {[%clk 0:03:00.4]} 2. exd5 {[%clk 0:03:02.6]}
2... Qxd5 {[%clk 0:03:02.3]} 3. Nc3 {[%clk 0:03:03]} 3... Qd6 {[%clk 0:03:03.5]}
4. d4 {[%clk 0:03:04]} 4... Nf6 {[%clk 0:03:05]} 5. g3 {[%clk 0:03:03.5]} 5...
a6 {[%clk 0:02:58.1]} 6. Bg2 {[%clk 0:02:59.9]} 6... Nc6 {[%clk 0:02:58.9]} 7.
Nge2 {[%clk 0:03:00]} 7... Bg4 {[%clk 0:02:59.8]} 8. Bf4 {[%clk 0:02:58.4]} 8...
Qb4 {[%clk 0:02:14.9]} 9. O-O {[%clk 0:02:50.5]} 9... O-O-O {[%clk 0:02:14.6]}
10. h3 {[%clk 0:02:06.3]} 10... Bh5 {[%clk 0:01:53.4]} 11. Bxc6 {[%clk 0:01:56]}
11... bxc6 {[%clk 0:01:53.8]} 12. Qd3 {[%clk 0:01:57.3]} 12... Qb6 {[%clk
0:01:19.4]} 13. Na4 {[%clk 0:01:55.3]} 13... Qb5 {[%clk 0:01:13.2]} 14. Nec3
{[%clk 0:00:50.9]} 14... Qxd3 {[%clk 0:01:08.1]} 15. cxd3 {[%clk 0:00:52.8]}
15... e6 {[%clk 0:01:07.3]} 16. Nc5 {[%clk 0:00:52.4]} 16... Bxc5 {[%clk
0:01:07.8]} 17. dxc5 {[%clk 0:00:53.8]} 17... Rxd3 {[%clk 0:01:09]} 18. Be5
{[%clk 0:00:36.8]} 18... Rhd8 {[%clk 0:01:04]} 19. a4 {[%clk 0:00:26.4]} 19...
Bf3 {[%clk 0:01:03.1]} 20. Na2 {[%clk 0:00:21.3]} 20... Kb7 {[%clk 0:00:58.7]}
21. Nb4 {[%clk 0:00:19.3]} 21... Rd2 {[%clk 0:00:39]} 22. Bc3 {[%clk 0:00:19.9]}
22... R2d7 {[%clk 0:00:35.1]} 23. Nc2 {[%clk 0:00:20.9]} 23... Rd5 {[%clk
0:00:20.7]} 24. b4 {[%clk 0:00:18.2]} 24... Rd3 {[%clk 0:00:20.2]} 25. Bxf6
{[%clk 0:00:18.9]} 25... gxf6 {[%clk 0:00:20.9]} 26. Ne3 {[%clk 0:00:20.5]}
26... Rb3 {[%clk 0:00:19.8]} 27. Nc4 {[%clk 0:00:18.9]} 27... Rxb4 {[%clk
0:00:17.8]} 28. Rfc1 {[%clk 0:00:18.3]} 28... Rd4 {[%clk 0:00:17]} 29. Na5+
{[%clk 0:00:19]} 29... Kc8 {[%clk 0:00:18.1]} 30. Rc3 {[%clk 0:00:20.2]} 30...
Rxa4 {[%clk 0:00:18.5]} 31. Rxa4 {[%clk 0:00:17.5]} 31... Rxa4 {[%clk
0:00:20.4]} 32. Rxf3 {[%clk 0:00:17.8]} 32... Rxa5 {[%clk 0:00:21.5]} 33. Rxf6
{[%clk 0:00:19.4]} 33... Rxc5 {[%clk 0:00:22.8]} 34. Rxf7 {[%clk 0:00:20.9]}
34... a5 {[%clk 0:00:24.1]} 35. Rxh7 {[%clk 0:00:21.4]} 35... a4 {[%clk
0:00:25.6]} 36. Rh4 {[%clk 0:00:23]} 36... Ra5 {[%clk 0:00:25.8]} 37. Rb4 {[%clk
0:00:23.8]} 37... a3 {[%clk 0:00:26.9]} 38. Rb1 {[%clk 0:00:25.4]} 38... a2
{[%clk 0:00:28.3]} 39. Ra1 {[%clk 0:00:27]} 39... c5 {[%clk 0:00:29.8]} 40. Kf1
{[%clk 0:00:26.9]} 40... c4 {[%clk 0:00:31.7]} 41. Ke2 {[%clk 0:00:28.3]} 41...
Kd7 {[%clk 0:00:33.1]} 42. Kd2 {[%clk 0:00:29.6]} 42... Kd6 {[%clk 0:00:34.5]}
43. Kc3 {[%clk 0:00:31]} 43... Kd5 {[%clk 0:00:35.9]} 44. h4 {[%clk 0:00:32.5]}
44... Kc5 {[%clk 0:00:35.8]} 45. f3 {[%clk 0:00:33.6]} 45... Ra3+ {[%clk
0:00:36.7]} 46. Kc2 {[%clk 0:00:35.2]} 46... Rxf3 {[%clk 0:00:38.2]} 47. Rxa2
{[%clk 0:00:32.3]} 47... Rxg3 {[%clk 0:00:39.1]} 48. Ra5+ {[%clk 0:00:31.5]}
48... Kd6 {[%clk 0:00:39.7]} 49. h5 {[%clk 0:00:31.5]} 49... Rh3 {[%clk
0:00:40.2]} 50. Rg5 {[%clk 0:00:30.9]} 50... e5 {[%clk 0:00:40.1]} 51. Rg6+
{[%clk 0:00:30.7]} 51... Kd5 {[%clk 0:00:41.5]} 52. h6 {[%clk 0:00:32.2]} 52...
c5 {[%clk 0:00:40.4]} 53. Kd2 {[%clk 0:00:30.9]} 53... Rh2+ {[%clk 0:00:39.2]}
54. Kc3 {[%clk 0:00:31.8]} 54... Rh3+ {[%clk 0:00:39.9]} 55. Kc2 {[%clk
0:00:33.1]} 55... Ke4 {[%clk 0:00:39.9]} 56. Rc6 {[%clk 0:00:31.5]} 56... Kd5
{[%clk 0:00:38.4]} 57. Rg6 {[%clk 0:00:31.5]} 57... e4 {[%clk 0:00:39.6]} 58.
Kd2 {[%clk 0:00:30.1]} 58... c3+ {[%clk 0:00:39.4]} 59. Kc2 {[%clk 0:00:30.8]}
59... Kc4 {[%clk 0:00:40.9]} 60. Rd6 {[%clk 0:00:24]} 60... Rh2+ {[%clk
0:00:40.6]} 61. Kc1 {[%clk 0:00:24.8]} 61... e3 {[%clk 0:00:40.7]} 62. Re6
{[%clk 0:00:25.3]} 62... e2 {[%clk 0:00:41.4]} 63. h7 {[%clk 0:00:24.2]} 63...
Rxh7 {[%clk 0:00:39.4]} 64. Rxe2 {[%clk 0:00:24.3]} 64... Kd3 {[%clk 0:00:40.8]}
65. Re1 {[%clk 0:00:23.1]} 65... Rh2 {[%clk 0:00:41.2]} 66. Rd1+ {[%clk
0:00:22.8]} 66... Rd2 {[%clk 0:00:41.1]} 67. Rg1 {[%clk 0:00:23]} 67... Re2
{[%clk 0:00:34.8]} 68. Rd1+ {[%clk 0:00:21.3]} 68... Kc4 {[%clk 0:00:34.9]} 69.
Rd8 {[%clk 0:00:21]} 69... c2 {[%clk 0:00:33.7]} 70. Rh8 {[%clk 0:00:16.6]}
70... Kb4 {[%clk 0:00:30.6]} 71. Rb8+ {[%clk 0:00:16.5]} 71... Kc3 {[%clk
0:00:31.4]} 72. Rb3+ {[%clk 0:00:08.7]} 72... Kc4 {[%clk 0:00:32.1]} 73. Rc3+
{[%clk 0:00:07.6]} 73... Kb4 {[%clk 0:00:31.1]} 74. Rb3+ {[%clk 0:00:03.9]} 1-0